bitfinex/quotes_SOLUSD_20250625
["timestamp","ask_amount","ask_price","bid_price","bid_amount"]
[1750823063392,5.0529059,146.1,146.05,3.5344059]
[1750823063892,1.5185,146.1,146.06,3.5344059]
[1750823064194,5.0529059,146.1,146.06,3.5344059]
[1750823064366,5.0529059,146.1,146.05,3.5344059]
[1750823064571,5.0529059,146.1,146.06,3.5344059]
[1750823064773,5.0529059,146.1,146.05,6.84697021]
[1750823064980,5.0529059,146.1,146.06,3.5344059]
[1750823065989,5.0529059,146.1,146.05,6.84697021]
[1750823066190,5.0529059,146.1,146.05,10.38137611]
[1750823069393,3.5344059,146.07,146.02,5.88]
[1750823069586,3.5344059,146.07,146.03,3.5344059]
[1750823069887,3.5344059,146.08,146.03,3.5344059]
[1750823070292,29.5344059,146.08,146.03,10.3821505]
[1750823070486,26.0,146.09,146.05,3.5344059]
[1750823070686,1.5185,146.1,146.05,3.5344059]
[1750823070687,5.0529059,146.1,146.05,3.5344059]
[1750823071489,3.5344059,146.09,146.05,3.5344059]
[1750823071695,3.5344059,146.09,146.03,6.8477446]
[1750823071696,3.5344059,146.09,146.04,3.5344059]
[1750823072386,5.52291053,146.08,146.04,5.52291053]
[1750823072804,1.5185,146.1,145.95,57.918084]
[1750823072979,5.52291053,146.07,146.03,5.52291053]
[1750823073175,5.52291053,146.07,146.02,18.64964886]
[1750823073379,5.52291053,146.07,146.02,5.52291053]
[1750823074005,5.52291053,146.07,146.03,6.84790796]
[1750823077404,5.52291053,146.08,146.04,5.52291053]
[1750823077702,5.52291053,146.08,146.04,12.37033623]
[1750823078783,5.52291053,146.09,146.05,5.52291053]
[1750823080004,5.52291053,146.09,146.05,12.36971403]
[1750823080402,5.52291053,146.09,146.05,6.8468035]
[1750823082513,5.52291053,146.09,146.04,12.37018235]
[1750823082514,12.3680072,146.09,146.04,12.37018235]
[1750823085922,5.52291053,146.08,146.03,5.52291053]
[1750823086916,5.52291053,146.08,146.03,12.37037198]
[1750823087516,12.3686387,146.08,146.03,12.37037198]
[1750823087911,5.52291053,146.07,146.03,12.37037198]
[1750823090021,6.84572817,146.08,146.03,12.37037198]
[1750823090224,12.3686387,146.08,146.03,12.37037198]
[1750823091028,5.52291053,146.08,146.03,12.37037198]
[1750823091212,12.36814078,146.09,146.04,5.52291053]
[1750823092229,12.36814078,146.09,146.04,12.37011853]
[1750823093410,5.52291053,146.08,146.04,12.37011853]
[1750823096128,5.52291053,146.08,146.02,25.49802579]
[1750823096307,12.36848231,146.08,146.03,5.52291053]
[1750823096507,11.59951053,146.07,146.03,5.52291053]
[1750823097428,11.59951053,146.07,146.03,12.37046517]
[1750823098028,6.0766,146.07,146.03,12.37046517]
[1750823099611,6.0766,146.07,146.03,5.52291053]
[1750823100325,6.0766,146.07,146.03,3.53508396]
[1750823100715,6.0766,146.07,146.03,10.38262815]
[1750823103802,6.0766,146.07,146.03,6.84754419]
[1750823104009,3.53508396,146.04,145.99,22.18473282]
[1750823104218,5.52668571,146.04,145.99,18.64964886]
[1750823105036,5.52668571,146.04,145.99,25.49943309]
[1750823105823,5.52668571,146.05,145.99,31.0261188]
[1750823106012,7.07248571,146.06,145.99,31.0261188]
[1750823106532,7.07248571,146.06,146.0,5.52668571]
[1750823107612,1.5458,146.06,146.01,12.37553167]
[1750823107936,1.5458,146.06,146.02,5.52668571]
[1750823109318,1.5458,146.06,146.01,12.37553167]
[1750823109847,1.5458,146.06,146.01,6.84884596]
[1750823110052,1.5458,146.06,146.01,12.37553167]
[1750823110350,1.5458,146.06,146.02,5.52668571]
[1750823110950,1.5458,146.06,146.03,18.64964886]
[1750823111125,12.7434986,146.1,146.05,5.52668571]
[1750823111443,5.1238986,146.09,146.05,5.52668571]
[1750823111629,13.14628571,146.1,146.06,6.84650143]
[1750823115549,13.14628571,146.1,146.06,12.37318714]
[1750823117474,7.6196,146.1,146.07,5.52668571]
[1750823118258,7.6196,146.1,146.06,12.37318714]
[1750823119154,26.0,146.11,146.08,5.52668571]
[1750823119530,26.0,146.11,146.07,5.52668571]
[1750823120630,26.0,146.11,146.07,12.37229576]
[1750823121760,31.52668571,146.11,146.07,6.84561005]
[1750823122061,31.52668571,146.11,146.07,12.37229576]
[1750823127832,26.0,146.11,146.07,12.37229576]
[1750823128944,5.1152738,146.13,146.08,12.37195496]
[1750823129161,13.19728571,146.14,146.09,5.52668571]
[1750823129340,44.31255951,146.14,146.09,5.52668571]
[1750823130354,49.16080435,146.14,146.09,3.53217042]
[1750823130556,44.04553055,146.14,146.09,3.53217042]
[1750823131352,3.53217042,146.13,146.08,3.53217042]
[1750823132261,12.36327838,146.13,146.08,5.52002039]
[1750823133341,12.36327838,146.13,146.08,12.36522175]
[1750823134754,5.52002039,146.12,146.07,12.36596526]
[1750823135970,12.36384701,146.12,146.07,6.84594487]
[1750823136148,5.52002039,146.09,146.06,6.84637743]
[1750823137264,5.52002039,146.09,146.05,6.84697021]
[1750823137566,5.52002039,146.07,146.03,18.24773748]
[1750823137760,5.52002039,146.07,146.03,12.72771709]
[1750823138558,5.52002039,146.07,146.03,18.24773748]
[1750823140270,5.52002039,146.08,146.03,12.72771709]
[1750823140463,5.52002039,146.08,146.03,18.24773748]
[1750823141764,5.52002039,146.08,146.04,5.52002039]
[1750823143067,5.52002039,146.08,146.04,12.36724497]
[1750823144271,5.52002039,146.08,146.04,6.84722458]
[1750823146870,5.52002039,146.08,146.04,12.36724497]
[1750823148177,5.52002039,146.05,145.97,1.6226]
[1750823148352,5.52002039,146.04,146.0,5.52002039]
[1750823149057,5.52002039,146.04,146.0,18.64964886]
[1750823149263,5.52002039,146.04,146.01,6.84884596]
[1750823149650,5.52002039,146.05,146.01,6.84884596]
[1750823150279,5.52002039,146.05,146.01,12.36886635]
[1750823153078,5.52002039,146.05,146.01,6.84884596]
[1750823153967,5.52002039,146.04,146.01,6.84884596]
[1750823157299,5.52002039,146.05,146.01,6.84884596]
[1750823160175,31.52002039,146.04,146.0,5.52002039]
[1750823160380,5.52002039,146.02,145.97,5.88]
[1750823160589,5.52002039,146.02,145.98,12.37027384]
[1750823160791,5.52002039,146.03,145.98,12.37027384]
[1750823162596,5.52002039,146.03,145.99,5.52002039]
[1750823162807,27.76,146.08,146.01,5.52002039]
[1750823162976,5.52002039,146.06,146.01,5.52002039]
[1750823163179,26.0,146.05,146.01,5.52002039]
[1750823163401,26.0,146.05,146.02,5.52002039]
[1750823163976,26.0,146.05,146.02,6.84826845]
[1750823166399,31.52002039,146.05,146.02,6.84826845]
[1750823167706,26.0,146.05,146.02,6.84826845]
[1750823167998,31.52002039,146.05,146.01,12.36870072]
[1750823168791,5.52002039,146.03,145.99,5.52002039]
[1750823169096,5.52002039,146.03,145.98,5.52002039]
[1750823169292,5.52002039,146.03,145.98,12.37027384]
[1750823174592,5.52002039,146.03,145.99,12.36944376]
[1750823175796,5.52002039,146.02,145.98,12.37011584]
[1750823176912,5.52002039,146.02,145.98,6.85009545]
[1750823177214,5.52002039,146.01,145.98,6.85009545]
[1750823177410,5.52002039,146.01,145.97,12.73058355]
[1750823177613,5.52002039,146.0,145.95,6.85154039]
[1750823178116,11.98062039,145.99,145.93,6.85260056]
[1750823178318,5.52002039,145.98,145.94,5.52002039]
[1750823178695,5.52002039,145.98,145.94,12.37211277]
[1750823178896,5.52002039,145.98,145.94,6.85209238]
[1750823180097,5.52002039,145.98,145.93,5.52002039]
[1750823180098,5.52002039,145.97,145.93,6.85260056]
[1750823180298,5.52002039,145.95,145.91,11.40002039]
[1750823181102,5.52002039,145.95,145.91,18.25336826]
[1750823181916,5.52002039,145.96,145.92,5.52002039]
[1750823182711,5.52002039,145.96,145.92,12.37299301]
[1750823185328,5.52002039,145.95,145.92,6.85297262]
[1750823186621,5.52002039,145.94,145.88,6.85494927]
[1750823186924,5.52002039,145.94,145.9,5.52002039]
[1750823187320,6.0596,145.96,145.91,5.52002039]
[1750823187510,5.52002039,145.95,145.91,5.52002039]
[1750823188842,5.52002039,145.95,145.91,12.3733325]
[1750823189537,11.57962039,145.96,145.92,5.52002039]
[1750823190726,1.5075,145.99,145.95,12.37168191]
[1750823190936,15.18862908,146.0,145.98,5.52002039]
[1750823191842,15.18862908,146.0,145.99,5.52002039]
[1750823192660,15.18862908,146.0,145.99,24.16966925]
[1750823192868,15.18862908,146.0,145.99,36.89945348]
[1750823193146,33.17182039,146.07,145.99,54.02391405]
[1750823193329,33.17182039,146.07,146.03,5.52002039]
[1750823193723,33.17182039,146.07,146.02,5.52002039]
[1750823194740,33.17182039,146.07,146.02,12.3680387]
[1750823197350,5.52002039,146.06,146.02,12.3680387]
[1750823198718,7.17182039,146.07,146.03,24.16966925]
[1750823198932,6.1566,146.08,146.03,24.16966925]
[1750823198933,5.52002039,146.1,146.06,5.52002039]
[1750823200357,5.52002039,146.1,146.06,12.36646328]
[1750823201555,6.84451454,146.11,146.06,12.36646328]
[1750823201757,5.52002039,146.1,146.06,12.36646328]
[1750823204136,5.52002039,146.09,146.03,18.64964886]
[1750823204454,5.52002039,146.08,146.04,5.52002039]
[1750823204667,5.52002039,146.09,146.04,5.52002039]
[1750823205040,5.52002039,146.09,146.04,12.36742662]
[1750823205242,5.52002039,146.09,146.05,12.36670443]
[1750823206666,6.84415851,146.11,146.05,6.84668404]
[1750823206851,5.52002039,146.09,146.05,12.36670443]
[1750823207338,5.52002039,146.09,146.05,6.84668404]
[1750823207861,5.52002039,146.09,146.04,12.36727608]
[1750823210350,12.36511598,146.09,146.04,6.84725569]
[1750823210553,12.36511598,146.09,146.04,12.36727608]
[1750823210762,5.52002039,146.09,146.04,12.36727608]
[1750823212966,5.52002039,146.09,146.05,5.52002039]
[1750823213376,6.84415851,146.11,146.04,5.52002039]
[1750823213377,5.52002039,146.08,146.04,5.52002039]
[1750823213679,5.52002039,146.07,146.03,12.367745]
[1750823214789,5.52002039,146.07,146.02,12.36839732]
[1750823219160,5.52002039,146.06,146.01,6.84876978]
[1750823219367,6.84579307,146.08,146.0,12.3691318]
[1750823219368,5.52002039,146.05,146.0,12.3691318]
[1750823219565,5.52002039,146.04,146.0,6.84911141]
[1750823220176,5.52002039,146.04,145.99,18.24965177]
[1750823221177,12.36754063,146.04,145.99,18.24965177]
[1750823222287,12.36754063,146.04,145.99,12.72963138]
[1750823222491,5.52002039,146.03,145.99,18.24965177]
[1750823223295,5.52002039,146.01,145.99,5.88]
[1750823223470,5.52002039,146.0,145.96,12.37121249]
[1750823223790,5.52002039,146.0,145.91,6.0745]
[1750823223791,31.52002039,146.0,145.91,6.85334247]
[1750823223971,5.52002039,145.96,145.91,6.85334247]
[1750823224175,5.52002039,145.97,145.92,5.52002039]
[1750823224598,12.37075131,145.97,145.92,12.37301569]
[1750823225286,5.52002039,145.97,145.92,12.37301569]
[1750823225590,5.52002039,145.97,145.93,5.52002039]
[1750823226191,6.37880993,146.07,145.96,5.52002039]
[1750823226391,5.52002039,146.02,145.98,5.52002039]
[1750823226782,5.52002039,146.02,145.97,12.37073599]
[1750823227001,12.36842743,146.02,145.97,12.37073599]
[1750823227299,5.52002039,146.01,145.97,5.52002039]
[1750823227696,5.52002039,146.01,145.96,5.52002039]
[1750823227996,5.52002039,146.0,145.96,5.52002039]
[1750823228408,5.52002039,146.0,145.94,5.88]
[1750823228576,5.52002039,145.99,145.95,5.52002039]
[1750823229486,6.84898829,146.01,145.96,5.52002039]
[1750823229684,12.36900868,146.01,145.96,5.52002039]
[1750823229888,5.52002039,146.0,145.96,5.52002039]
[1750823230610,5.52002039,146.01,145.96,12.37107567]
[1750823230787,5.52002039,146.01,145.97,5.52002039]
[1750823231307,31.52002039,146.02,145.97,5.52002039]
[1750823231500,31.52002039,146.02,145.98,5.52002039]
[1750823231673,26.0,146.02,145.98,5.52002039]
[1750823231869,31.52002039,146.02,145.98,5.52002039]
[1750823232294,31.52002039,146.02,145.97,5.52002039]
[1750823233180,31.52002039,146.02,145.98,6.85025345]
[1750823235493,31.52002039,146.02,145.97,5.52002039]
[1750823235694,31.52002039,146.02,145.96,6.8511921]
[1750823235912,31.52002039,146.02,145.97,5.52002039]
[1750823237185,31.52002039,146.02,145.98,6.85025345]
[1750823238013,13.63692039,146.05,146.0,5.52002039]
[1750823238210,8.1169,146.05,146.01,5.52002039]
[1750823238507,13.63692039,146.05,146.0,5.52002039]
[1750823239799,13.63692039,146.05,146.0,12.36900687]
[1750823242009,20.48393521,146.05,146.0,12.36900687]
[1750823246407,14.96391482,146.05,146.0,12.36900687]
[1750823246614,20.48393521,146.05,146.0,12.36900687]
[1750823247415,5.52002039,146.05,146.01,5.52002039]
[1750823248514,12.36704426,146.05,146.0,5.52002039]
[1750823249718,12.36704426,146.05,146.0,12.3690741]
[1750823251317,5.52002039,146.05,146.0,12.3690741]
[1750823251522,5.52002039,146.05,146.01,5.52002039]
[1750823252616,5.52002039,146.05,146.01,12.36873907]
[1750823253114,38.36668917,146.06,146.01,12.36873907]
[1750823253722,26.0,146.06,146.02,5.52002039]
[1750823255122,26.0,146.06,146.02,12.3680653]
[1750823255613,38.36653381,146.06,146.0,6.84931506]
[1750823255794,38.36653381,146.06,146.01,5.52002039]
[1750823255795,31.52002039,146.06,146.01,5.52002039]
[1750823256001,5.52002039,146.07,146.02,5.52002039]
[1750823256504,12.36611381,146.07,146.02,5.52002039]
[1750823257001,12.36611381,146.07,146.02,12.36810603]
[1750823265129,11.13711911,146.08,146.04,5.52002039]
[1750823265310,16.6571395,146.08,146.03,5.52002039]
[1750823265825,11.54872039,146.08,146.03,5.52002039]
[1750823266214,18.39432611,146.08,146.03,12.36788131]
[1750823266416,17.98272483,146.08,146.03,12.36788131]
[1750823266609,18.39432611,146.08,146.03,12.36788131]
[1750823266809,23.50274522,146.08,146.03,12.36788131]
[1750823267039,18.39432611,146.08,146.03,12.36788131]
[1750823269018,5.52002039,146.07,146.03,12.36788131]
[1750823271534,16.66366672,146.08,146.03,12.36788131]
[1750823272030,27.5009,146.09,146.05,5.52002039]
[1750823272210,32.6184126,146.09,146.05,5.52002039]
[1750823273207,32.6184126,146.09,146.05,12.36667708]
[1750823273531,38.13843299,146.09,146.05,12.36667708]
[1750823278229,38.13843299,146.09,146.02,5.88]
[1750823278230,5.52002039,146.08,146.03,12.36792835]
[1750823279236,5.52002039,146.08,146.04,5.52002039]
[1750823280010,39.86611095,146.09,146.05,5.52002039]
[1750823280212,5.11955794,146.08,146.05,12.36696779]
[1750823281120,39.86611095,146.09,146.05,12.36696779]
[1750823281637,44.98523342,146.09,146.05,12.36696779]
[1750823281829,39.86611095,146.09,146.05,12.36696779]
[1750823282408,1.5009,146.09,146.06,5.52002039]
[1750823282755,5.52002039,146.08,146.04,5.52002039]
[1750823283040,5.52002039,146.08,146.02,5.88]
[1750823283041,5.52002039,146.06,146.02,11.40002039]
[1750823283942,17.15681173,146.07,146.03,5.52002039]
[1750823284145,12.03592039,146.07,146.03,12.36784515]
[1750823284346,17.15681173,146.07,146.03,12.36784515]
[1750823285346,24.00290477,146.07,146.03,5.52002039]
[1750823285557,18.88201343,146.07,146.03,5.52002039]
[1750823285717,24.00290477,146.07,146.03,5.52002039]
[1750823285916,18.88201343,146.07,146.03,5.52002039]
[1750823286116,24.00290477,146.07,146.03,5.52002039]
[1750823286416,18.88201343,146.07,146.03,5.52002039]
[1750823286744,24.00290477,146.07,146.03,5.52002039]
[1750823286942,18.88201343,146.07,146.03,5.52002039]
[1750823287241,24.00290477,146.07,146.03,5.52002039]
[1750823287433,18.88201343,146.07,146.03,5.52002039]
[1750823287738,24.00393425,146.07,146.03,5.52002039]
[1750823287944,24.00393425,146.07,146.0,18.64964886]
[1750823287945,5.52002039,146.06,146.01,5.52002039]
[1750823288118,5.52002039,146.06,146.0,6.84931506]
[1750823288119,5.52002039,146.05,146.0,12.36933545]
[1750823289238,12.36732359,146.05,146.0,12.36933545]
[1750823289436,5.52002039,146.04,145.99,18.24963636]
[1750823290541,17.49057667,146.04,145.99,18.24963636]
[1750823290850,5.52002039,146.03,145.99,18.24963636]
[1750823291434,12.36775481,146.04,145.99,18.24963636]
[1750823292650,5.52002039,146.03,145.99,18.24963636]
[1750823293025,5.52002039,146.03,145.99,12.72961597]
[1750823295242,5.52002039,146.03,145.99,18.24963636]
[1750823297145,8.36523835,146.05,146.0,5.52002039]
[1750823297146,13.88525874,146.05,146.0,5.52002039]
[1750823297329,19.00557025,146.05,146.0,5.52002039]
[1750823297524,13.88525874,146.05,146.0,5.52002039]
[1750823297842,1.5182,146.05,146.03,5.52002039]
[1750823298047,5.12031151,146.06,146.03,5.52002039]
[1750823298644,5.12031151,146.06,145.99,48.5037254]
[1750823298865,10.6403319,146.06,146.02,5.52002039]
[1750823299155,10.6403319,146.06,146.01,5.52002039]
[1750823299451,5.52002039,146.05,146.01,5.52002039]
[1750823299841,10.6403319,146.06,146.02,5.52002039]
[1750823300326,18.8821581,146.07,146.02,5.52002039]
[1750823301861,13.36213771,146.07,146.02,12.36826681]
[1750823302050,18.8821581,146.07,146.02,12.36826681]
[1750823302438,5.52002039,146.06,146.02,5.52002039]
[1750823302734,5.52002039,146.06,146.02,12.36838972]
[1750823303159,10.63961502,146.06,146.02,12.36838972]
[1750823303332,5.52002039,146.06,146.02,12.36838972]
[1750823303656,10.63959683,146.06,146.02,12.36838972]
[1750823304056,17.48616479,146.06,146.02,5.52002039]
[1750823304368,5.52002039,146.06,146.02,12.36839184]
[1750823305153,10.63958298,146.06,146.02,12.36839184]
[1750823305336,5.52002039,146.06,146.02,12.36839184]
[1750823305642,5.1195431,146.06,146.02,5.52002039]
[1750823306061,18.88211092,146.07,146.02,5.52002039]
[1750823306436,18.88211092,146.07,146.02,12.36829103]
[1750823306863,5.11952657,146.06,146.02,12.36829103]
[1750823307154,24.00163749,146.07,146.02,12.36829103]
[1750823307363,5.11952657,146.06,146.02,12.36829103]
[1750823307657,6.5159,146.07,146.04,5.52002039]
[1750823307962,11.63505884,146.07,146.04,5.52002039]
[1750823308162,6.5159,146.07,146.04,5.52002039]
[1750823309159,6.5159,146.07,146.05,5.52002039]
[1750823309535,6.5159,146.07,146.04,12.36724975]
[1750823312163,6.5159,146.07,146.05,5.52002039]
[1750823312350,1.63,146.08,146.05,5.52002039]
[1750823313364,1.63,146.08,146.05,12.36681554]
[1750823314469,1.63,146.08,146.05,10.38127968]
[1750823314960,5.11772329,146.1,146.07,3.53448453]
[1750823315469,11.69042329,146.11,146.08,3.53448453]
[1750823315838,21.13600753,146.12,146.05,23.96422068]
[1750823316044,21.13600753,146.12,146.1,3.53448453]
[1750823316045,16.01828424,146.12,146.1,3.53448453]
[1750823316660,16.01828424,146.12,146.09,3.53448453]
[1750823317161,22.86201607,146.12,146.09,3.53448453]
[1750823317867,16.01828424,146.12,146.09,3.53448453]
[1750823318268,16.01828424,146.12,146.08,5.52004623]
[1750823319759,16.01828424,146.12,146.08,12.36548057]
[1750823323857,21.53833047,146.12,146.08,12.36548057]
[1750823325278,16.01828424,146.12,146.09,5.52004623]
[1750823328476,16.01828424,146.12,146.09,12.36504845]
[1750823336998,16.01828424,146.12,146.1,5.52004623]
[1750823337212,14.47498424,146.12,146.1,5.52004623]
[1750823338074,14.47498424,146.12,146.09,6.84500222]
[1750823338075,14.47498424,146.12,146.11,5.52004623]
[1750823338278,163.16898871,146.18,146.11,3.5303708]
[1750823338579,3.5303708,146.16,146.11,3.5303708]
[1750823338778,3.5303708,146.16,146.11,10.374155]
[1750823339482,3.5303708,146.16,146.12,3.5303708]
[1750823340000,10.1279708,146.18,146.13,3.5303708]
[1750823340379,12.1141235,146.18,146.13,5.5165235]
[1750823340579,6.5976,146.18,146.14,5.5165235]
[1750823340980,12.1141235,146.18,146.14,12.35913631]
[1750823343702,12.1141235,146.18,146.14,6.84261281]
[1750823345403,6.5976,146.18,146.14,5.5165235]
[1750823345601,12.1141235,146.18,146.14,5.5165235]
[1750823346606,6.5976,146.18,146.14,5.5165235]
[1750823347205,6.5976,146.18,146.15,6.84228532]
[1750823347382,6.5976,146.18,146.15,12.35880882]
[1750823347582,5.5165235,146.17,146.12,6.84369011]
[1750823347892,5.5165235,146.17,146.12,12.36021361]
[1750823348095,5.5165235,146.17,146.13,5.5165235]
[1750823349625,5.5165235,146.17,146.13,12.35960595]
[1750823352709,12.1141235,146.18,146.13,12.35960595]
[1750823352900,12.1141235,146.18,146.14,5.5165235]
[1750823353804,12.1141235,146.18,146.13,12.35960595]
[1750823355416,6.5976,146.18,146.13,12.35960595]
[1750823355710,6.5976,146.18,146.14,5.5165235]
[1750823355914,18.95500965,146.18,146.13,12.35960595]
[1750823359318,12.1141235,146.18,146.14,5.5165235]
[1750823360314,10.1278358,146.18,146.14,3.5302358]
[1750823361094,16.96878077,146.18,146.13,6.84308245]
[1750823361295,3.5302358,146.17,146.13,10.37331825]
[1750823361602,16.96878077,146.18,146.13,10.37331825]
[1750823364022,16.96878077,146.18,146.14,3.5302358]
[1750823364518,10.1278358,146.18,146.14,3.5302358]
[1750823364730,6.5976,146.18,146.14,3.5302358]
[1750823365400,1.5442,146.19,146.17,3.5302358]
[1750823365601,26.0,146.2,146.17,3.5302358]
[1750823366295,26.0,146.2,146.17,10.37157225]
[1750823366617,5.10562091,146.21,146.17,10.37157225]
[1750823366799,16.68075671,146.22,146.17,10.37157225]
[1750823367394,16.68075671,146.22,146.12,18.64964886]
[1750823367395,3.5302358,146.19,146.13,6.84322178]
[1750823367615,3.5302358,146.19,146.15,3.5302358]
[1750823367925,10.3710109,146.19,146.14,3.5302358]
[1750823368097,3.5302358,146.17,146.13,6.84322178]
[1750823368706,3.5302358,146.17,146.12,10.37373888]
[1750823370025,10.37170331,146.17,146.12,10.37373888]
[1750823370328,12.35858913,146.17,146.12,12.3606247]
[1750823372226,5.51712162,146.16,146.11,5.51712162]
[1750823373498,5.51712162,146.15,146.08,18.64964886]
[1750823373700,8.1712,146.17,146.12,5.51712162]
[1750823374021,5.51712162,146.15,146.1,5.51712162]
[1750823375042,5.51712162,146.16,146.12,5.51712162]
[1750823376034,5.51712162,146.16,146.12,12.36054776]
[1750823376335,5.51712162,146.16,146.12,6.84342614]
[1750823376506,5.51712162,146.15,146.11,6.84400181]
[1750823376707,5.51712162,146.15,146.08,25.49521293]
[1750823376919,5.51712162,146.14,146.09,5.51712162]
[1750823377919,11.95715859,146.15,146.09,12.36195698]
[1750823378228,5.51712162,146.14,146.1,5.51712162]
[1750823379308,5.51712162,146.14,146.1,12.36163036]
[1750823381027,5.51712162,146.15,146.11,5.51712162]
[1750823381229,15.01268764,146.17,146.07,48.97391212]
[1750823381230,15.01268764,146.17,146.08,6.84556407]
[1750823381231,5.51712162,146.13,146.08,6.84556407]
[1750823381413,5.51712162,146.14,146.09,5.51712162]
[1750823382421,5.51712162,146.14,146.09,12.36180234]
[1750823383240,12.35989528,146.14,146.09,12.36180234]
[1750823383533,12.35989528,146.14,146.07,31.86]
[1750823383534,5.51712162,146.13,146.08,6.84554462]
[1750823383713,13.60322162,146.13,146.08,12.36266624]
[1750823384340,5.51712162,146.11,146.07,18.22305047]
[1750823384521,5.51712162,146.12,146.07,18.22305047]
[1750823384839,5.51712162,146.12,146.08,5.51712162]
[1750823385540,5.51712162,146.12,146.08,12.36262666]
[1750823387148,12.3608516,146.12,146.07,12.70584777]
[1750823387451,12.3608516,146.12,146.07,18.22296939]
[1750823387624,5.51712162,146.11,146.07,5.86]
[1750823387941,5.51712162,146.11,146.06,12.36342721]
[1750823388720,12.3615789,146.11,146.06,12.36342721]
[1750823389654,5.51712162,146.1,146.03,43.11894638]
[1750823389944,5.51712162,146.1,146.05,5.51712162]
[1750823390443,11.64222162,146.08,146.03,6.84772147]
[1750823390627,5.51712162,146.07,146.03,12.36484309]
[1750823391849,18.48781543,146.08,146.03,12.36484309]
[1750823394348,18.48781543,146.08,146.04,5.51712162]
[1750823396446,6.1251,146.08,146.05,5.51712162]
[1750823398548,14.00468392,146.09,146.07,5.51712162]
[1750823398549,1.6423,146.09,146.07,5.51712162]
[1750823399533,6.1587,146.07,146.02,5.51712162]
[1750823399731,11.67582162,146.07,146.02,5.51712162]
[1750823400050,1.6423,146.09,146.06,5.51712162]
[1750823400266,1.6423,146.09,146.07,5.51712162]
[1750823400441,1.6423,146.09,146.06,5.51712162]
[1750823400833,1.6423,146.09,146.07,5.51712162]
[1750823404059,6.4532,146.1,146.08,5.51712162]
[1750823404234,26.0,146.11,146.08,5.51712162]
[1750823405729,26.0,146.11,146.09,5.51712162]
[1750823406452,1.663,146.13,146.1,5.51712162]
[1750823406862,8.50622397,146.13,146.09,5.51712162]
[1750823408064,8.50622397,146.13,146.06,17.11617996]
[1750823408262,1.663,146.13,146.1,5.51712162]
[1750823409758,6.0441,146.14,146.11,5.51712162]
[1750823410354,6.0441,146.14,146.12,5.51712162]
[1750823410759,6.0441,146.14,146.1,6.84422231]
[1750823410956,6.0441,146.14,146.11,5.51712162]
[1750823412147,6.0441,146.14,146.12,5.51712162]
[1750823412751,26.0,146.15,146.12,5.51712162]
[1750823412949,26.0,146.15,146.13,5.51712162]
[1750823413672,19.81962849,146.17,146.13,5.51712162]
[1750823413974,14.71719258,146.17,146.13,5.51712162]
[1750823414379,19.82019372,146.17,146.13,5.51712162]
[1750823414965,14.71719258,146.17,146.13,5.51712162]
[1750823415168,20.2343142,146.17,146.13,5.51712162]
[1750823415784,6.3319,146.17,146.14,5.51712162]
[1750823416075,26.0,146.18,146.15,5.51712162]
[1750823416288,6.2547,146.2,146.17,5.51712162]
[1750823417972,13.09483107,146.2,146.16,5.51712162]
[1750823418282,18.61195269,146.2,146.16,5.51712162]
[1750823419689,6.2547,146.2,146.16,5.51712162]
[1750823420287,18.61178222,146.2,146.15,12.35927848]
[1750823420686,13.0946606,146.2,146.15,12.35927848]
[1750823420989,18.61178222,146.2,146.16,5.51712162]
[1750823421576,6.2547,146.2,146.16,12.35881962]
[1750823425993,6.2547,146.2,146.16,5.51712162]
[1750823428613,5.51712162,146.18,146.11,18.64964886]
[1750823428766,5.51712162,146.18,146.13,5.51712162]
[1750823429094,12.35867428,146.17,146.13,5.51712162]
[1750823429295,5.51712162,146.15,146.11,5.51712162]
[1750823429477,5.51712162,146.13,146.08,5.51712162]
[1750823429666,5.51712162,146.12,146.07,5.51712162]
[1750823429865,5.51712162,146.11,146.06,12.36347458]
[1750823430099,5.51712162,146.11,146.06,6.84635296]
[1750823430390,5.51712162,146.1,146.06,5.51712162]
[1750823430701,5.51712162,146.09,146.04,12.74729095]
[1750823430861,5.51712162,146.09,146.04,18.26441257]
[1750823431700,5.51712162,146.08,146.04,11.41712162]
[1750823432271,5.51712162,146.08,146.04,5.9]
[1750823432995,5.51712162,146.07,146.04,5.9]
[1750823433188,12.36280428,146.08,146.04,5.9]
[1750823433592,5.51712162,146.07,146.04,5.9]
[1750823434275,12.36280428,146.08,146.04,5.9]
[1750823436600,5.51712162,146.05,146.0,5.51712162]
[1750823436804,5.51712162,146.04,145.99,12.36683206]
[1750823437170,5.51712162,146.03,145.98,12.3672127]
[1750823438799,5.51712162,146.03,145.99,5.51712162]
[1750823442400,152.3781,146.08,146.02,5.51712162]
[1750823442612,152.3781,146.08,146.04,5.51712162]
[1750823442613,13.02367191,146.08,146.04,5.51712162]
[1750823442981,18.54079353,146.08,146.04,5.51712162]
[1750823443181,11.69522162,146.08,146.04,5.51712162]
[1750823443474,11.69522162,146.08,146.03,5.51712162]
[1750823443687,18.54086448,146.08,146.03,5.51712162]
[1750823444807,18.54086448,146.08,146.03,5.51712162]
[1750823445299,5.51712162,146.07,146.03,12.36493788]